bitfinex-derivatives/quotes_ETHF0:USTF0_20250404
["timestamp","ask_amount","ask_price","bid_price","bid_amount"]
[1743778856870,3.2078,1794.5,1794.3,1.11506]
[1743778857066,3.2078,1794.5,1794.2,2.1984]
[1743778857263,3.2078,1794.5,1794.1,4.6223591]
[1743778857569,1.11502,1794.4,1794.2,41.91509]
[1743778857874,3.2078,1794.5,1794.2,40.8]
[1743778858175,3.2078,1794.5,1794.4,1.115]
[1743778858675,3.2078,1794.7,1794.5,1.11491]
[1743778858869,4.32261,1794.7,1794.5,1.11491]
[1743778859069,3.2078,1794.7,1794.5,1.11491]
[1743778859270,3.2078,1794.7,1794.6,40.8]
[1743778859271,4.32261,1794.7,1794.6,40.8]
[1743778859976,5.7078,1794.7,1794.2,2.0232]
[1743778860173,3.2078,1794.7,1794.2,2.0232]
[1743778860375,1.11487,1794.6,1794.4,1.11494]
[1743778860578,3.2078,1794.7,1794.2,2.0232]
[1743778860770,3.2078,1794.7,1794.2,4.81092]
[1743778860972,3.2078,1794.5,1794.1,0.0083591]
[1743778861172,1.11512,1794.2,1794.1,0.0083591]
[1743778861573,3.61512,1794.2,1794.1,0.0083591]
[1743778861775,5.43122,1794.2,1794.1,0.0083591]
[1743778862279,12.54222,1794.2,1794.1,1e-08]
[1743778862472,11.4271,1794.2,1793.6,40.8]
[1743778862672,3.2078,1793.8,1793.7,1.11541]
[1743778862972,3.2078,1793.8,1793.4,6.7884]
[1743778863172,3.2078,1793.6,1792.8,48.21373617]
[1743778863375,3.2078,1792.9,1792.8,14.19072617]
[1743778863570,1.11581,1793.1,1793.0,0.0083591]
[1743778863773,4.32361,1793.1,1793.0,1e-08]
[1743778864172,3.2078,1793.1,1793.0,1.11587001]
[1743778864479,6.82361,1793.1,1793.0,1e-08]
[1743778864877,11.43461,1793.1,1793.0,1e-08]
[1743778865081,6.82361,1793.1,1793.0,1e-08]
[1743778865283,11.43561,1793.1,1793.0,1e-08]
[1743778865574,19.46111,1793.1,1793.0,1e-08]
[1743778866776,14.84911,1793.1,1793.0,1e-08]
[1743778866982,19.46011,1793.1,1793.0,1e-08]
[1743778867577,13.63211,1793.1,1793.0,1e-08]
[1743778868086,19.46011,1793.1,1793.0,1e-08]
[1743778869076,3.2078,1793.1,1793.0,1.11587001]
[1743778869584,4.32361,1793.1,1793.0,1e-08]
[1743778869880,4.32361,1793.1,1793.0,40.80000001]
[1743778870082,6.82361,1793.1,1793.0,1e-08]
[1743778870287,12.65161,1793.1,1793.0,1e-08]
[1743778870494,14.86151,1793.1,1793.0,1e-08]
[1743778871388,19.47351,1793.1,1793.0,1e-08]
[1743778871684,16.97351,1793.1,1793.0,1e-08]
[1743778872180,15.8577,1793.1,1793.0,1e-08]
[1743778872384,5.4177,1793.1,1793.0,1.11587001]
[1743778872979,0.00828046,1793.4,1793.3,1.11568]
[1743778873186,2.19428046,1793.4,1793.3,1.11568]
[1743778873389,3.2078,1793.7,1793.6,1.11549]
[1743778873982,3.2078,1794.1,1793.8,1.11537]
[1743778874290,3.2078,1793.9,1793.3,9.50017]
[1743778874480,3.2078,1793.9,1793.5,2.0524]
[1743778874787,0.00835908,1793.8,1793.7,1.11538]
[1743778875386,0.00835908,1793.8,1793.7,3.16783]
[1743778875682,0.00835908,1793.8,1793.2,5.966]
[1743778875683,10.40225908,1793.8,1792.9,7.8198]
[1743778875884,3.2078,1793.4,1793.0,43.58965001]
[1743778876088,1.11572,1793.3,1793.1,3.30989]
[1743778876291,5.2737,1793.2,1793.1,1.11581]
[1743778876489,1.11581,1793.1,1793.0,1e-08]
[1743778876787,7.79371,1793.1,1793.0,1e-08]
[1743778876983,12.45141,1793.1,1793.0,1e-08]
[1743778877477,14.58341,1793.1,1793.0,1e-08]
[1743778877684,12.08341,1793.1,1793.0,1e-08]
[1743778877882,14.58341,1793.1,1793.0,1e-08]
[1743778879188,20.41141,1793.1,1793.0,1e-08]
[1743778879496,1.11632,1792.3,1792.1,1.11638]
[1743778879788,5.448,1792.2,1792.1,1.11638]
[1743778880093,6.56437,1792.2,1792.1,1.11638]
[1743778880287,5.448,1792.2,1792.0,3.35134]
[1743778880488,9.09e-06,1792.3,1792.2,1.11637]
[1743778880686,0.45077555,1793.9,1793.0,3.2078]
[1743778880884,1.11481,1794.7,1793.9,2.78827]
[1743778881089,1.11495,1794.5,1794.2,4.3229]
[1743778881283,12.8509081,1794.9,1794.0,43.0349]
[1743778881284,1.11518,1794.1,1794.0,40.8]
[1743778881689,3.0576,1794.1,1793.5,10.41899309]
[1743778881987,0.2496,1794.8,1794.5,3.2078]
[1743778882182,5.591,1795.8,1795.2,3.2078]
[1743778882489,21.79949725,1796.4,1795.7,2.97375119]
[1743778882791,21.79949725,1796.4,1795.3,4.862]
[1743778882792,15.53609287,1796.3,1796.2,3.2078]
[1743778882986,15.49130306,1796.4,1796.3,1.11382]
[1743778883188,23.74077507,1796.9,1796.8,1.11351]
[1743778883389,21.74241507,1796.9,1796.8,4.32131]
[1743778883584,17.50886507,1796.9,1796.8,4.32131]
[1743778883789,12.19529507,1796.9,1796.8,47.62131]
[1743778884091,51.97920974,1797.1,1797.0,1.11338]
[1743778884287,26.0589739,1797.5,1797.1,1.11332]
[1743778884487,26.0589739,1797.5,1797.0,3.2078]
[1743778884488,26.0589739,1797.5,1797.0,8.0858]
[1743778884793,26.0589739,1797.5,1797.1,40.8]
[1743778884996,26.0589739,1797.5,1797.1,44.0078]
[1743778885291,5.3918,1797.4,1797.1,44.0078]
[1743778885491,5.3918,1797.4,1796.7,0.0083591]
[1743778885492,7.06,1797.4,1796.7,3.2161591]
[1743778885799,7.06,1797.4,1796.7,0.0083591]
[1743778885995,2.184,1797.1,1796.5,40.8]
[1743778886186,3.2078,1796.7,1796.2,1.11384]
[1743778886495,3.2078,1797.0,1796.2,3.2078]
[1743778886690,2.184,1797.1,1796.4,3.2078]
[1743778886891,2.184,1797.1,1796.3,37.3729]
[1743778886892,3.2078,1797.6,1797.0,3.2078]
[1743778887087,3.2078,1797.6,1797.1,7.2169]
[1743778887292,0.0083591,1797.5,1797.1,42.3492591]
[1743778887486,0.55680001,1798.3,1798.0,1.11272]
[1743778887696,3.2078,1798.6,1798.0,4.999]
[1743778887895,3.2078,1799.1,1798.1,3.2078]
[1743778888195,3.2078,1799.5,1798.8,3.2078]
[1743778888500,1.11128,1800.4,1798.5,2.78112]
[1743778888501,3.7638,1800.5,1799.3,3.2078]
[1743778888795,5.2683,1800.3,1799.3,3.2078]
[1743778888995,1.11157,1800.0,1799.2,5.058]
[1743778889189,3.2078,1800.1,1799.3,2.2197]
[1743778889389,3.2078,1800.3,1799.4,3.2078]
[1743778889599,3.7638,1801.2,1800.1,3.2078]
[1743778889799,3.7638,1801.2,1800.2,7.4207]
[1743778889800,2.0605,1801.1,1800.2,7.4207]
[1743778890094,3.2078,1801.5,1800.8,3.2078]
[1743778890304,3.2078,1801.7,1801.0,3.2078]
[1743778890602,3.2078,1801.7,1801.3,3.2078]
[1743778890793,3.2078,1801.7,1801.0,3.2078]
[1743778890994,3.2078,1801.7,1800.9,2.2197]
[1743778890995,4.31831,1801.7,1801.3,3.21613472]
[1743778891194,1.11036,1801.9,1801.5,3.2078]
[1743778891394,1.11036,1801.9,1801.3,0.00833472]
[1743778891395,3.2078,1803.1,1801.6,8.5738]
[1743778891695,3.2078,1802.9,1802.1,3.2078]
[1743778891898,3.2078,1802.9,1802.1,8.5848]
[1743778892095,3.2078,1802.9,1802.1,3.2078]
[1743778892302,3.2078,1802.4,1802.3,0.00833472]
[1743778892494,3.2078,1802.8,1802.3,0.00833472]
[1743778892690,3.2078,1802.7,1802.3,0.00833472]
[1743778892896,1.11005,1802.4,1802.3,4.72e-06]
[1743778893405,1.11005,1802.4,1800.7,2.2281]
[1743778893406,0.5552,1802.3,1801.0,3.2078]
[1743778893699,3.2078,1801.7,1800.8,3.2078]
[1743778893903,3.2078,1801.3,1800.6,3.2078]
[1743778894106,3.2078,1801.3,1800.5,18.73029503]
[1743778894107,3.2078,1801.0,1800.5,5.511]
[1743778894306,2.0932,1801.2,1800.4,3.2078]
[1743778894598,0.00825345,1800.9,1800.6,0.00833472]
[1743778894799,1.1111,1800.7,1800.6,0.00833472]
[1743778895100,0.00825345,1800.9,1800.6,0.00833472]
[1743778895297,1.1111,1800.7,1800.6,4.72e-06]
[1743778895601,4.3189,1800.7,1800.6,4.72e-06]
[1743778895800,0.00825345,1800.9,1800.6,2.50000472]
[1743778896002,0.00825345,1800.9,1800.6,5.70780472]
[1743778896301,0.00825345,1800.9,1800.6,8.78880472]
[1743778896498,1.1111,1800.7,1800.6,4.72e-06]
[1743778896795,1.11926345,1800.9,1800.6,4.72e-06]
[1743778897004,1.1111,1800.7,1800.6,4.72e-06]
[1743778897302,4.3189,1800.7,1800.6,4.72e-06]
[1743778897494,1.1111,1800.7,1800.6,4.72e-06]
[1743778897689,0.00825345,1800.9,1800.6,2.50000472]
[1743778897998,3.2078,1800.8,1800.6,4.72e-06]
[1743778898301,1.1111,1800.7,1800.6,4.72e-06]
[1743778898801,3.3156,1800.7,1800.6,4.72e-06]
[1743778898993,0.00833,1800.8,1800.6,4.72e-06]
[1743778899395,0.00833,1800.8,1800.6,2.50000472]
[1743778899596,0.00833,1800.8,1800.7,2.0986]
[1743778899991,0.00833,1800.8,1800.7,45.3986]
[1743778900199,0.00833,1800.8,1800.7,42.8986]
[1743778900399,0.00833,1800.8,1800.6,4.72e-06]
[1743778900400,1.1111,1800.7,1800.6,4.72e-06]
[1743778900600,3.2271,1800.7,1800.6,4.72e-06]
[1743778900808,1.1111,1800.7,1800.6,40.80000472]
[1743778901103,0.00833,1800.8,1800.6,43.30000472]
[1743778901301,2.77651,1801.5,1800.7,10.9788]
[1743778901602,2.2433,1802.2,1801.2,3.2078]
[1743778901802,2.2433,1802.2,1801.4,3.2078]
[1743778902001,0.41620819,1802.4,1802.1,3.2078]
[1743778902203,0.41620819,1802.4,1802.3,3.2078]
[1743778902506,3.2078,1802.7,1801.7,5.717]
[1743778902698,3.2078,1802.9,1802.2,0.00833472]
[1743778902901,1.11011,1802.3,1802.2,0.00833472]
[1743778903102,1.11011,1802.3,1802.2,40.80833472]
[1743778904299,1.11036,1801.9,1801.8,5.724]
[1743778904497,1.11044,1801.8,1801.6,3.2078]
[1743778904697,2.77574,1802.0,1801.4,2.0574]
[1743778904896,3.2078,1801.6,1800.8,5.768]
[1743778905098,3.2078,1801.3,1800.4,3.2078]
[1743778905304,1.1112,1800.6,1800.5,40.8]
[1743778905609,1.11134,1800.3,1800.2,2.0574]
[1743778905807,1.11144,1800.2,1799.8,4.31942]
[1743778906008,1.11119,1800.6,1800.1,0.00833472]
[1743778906303,3.21613472,1801.0,1800.3,3.2078]
[1743778906502,3.21613472,1801.0,1800.2,5.782]
[1743778906503,1.11104,1800.8,1800.5,3.2078]
[1743778906808,1.11101,1800.9,1800.6,2.1972]
[1743778906996,3.21613472,1801.0,1800.6,2.1972]
[1743778907195,3.2078,1800.8,1800.2,5.782]
[1743778907401,1.11134,1800.3,1800.2,2.1972]
[1743778907902,2.0746,1802.0,1800.4,3.2078]
[1743778908202,1.11085,1801.1,1801.0,3.2078]
[1743778908404,1.11108,1800.8,1800.7,9.0598]
[1743778908707,9.0558,1801.6,1800.5,12.72838187]
[1743778908897,1.11116,1800.6,1800.5,2.1972]
[1743778909096,2.77734,1801.0,1800.3,3.2078]
[1743778909303,2.2257,1801.3,1800.5,4.31899]
[1743778909503,2.2257,1801.3,1800.6,2.1982]
[1743778910108,2.2257,1801.3,1800.6,5.406]
[1743778910300,2.2257,1801.3,1800.4,3.21613472]
[1743778910607,2.2257,1801.3,1800.6,3.2078]
[1743778910814,1.11103,1800.8,1800.7,8.0752]
[1743778911001,4.3338,1801.3,1800.7,8.0752]
[1743778911305,5.8384,1802.0,1801.2,3.2078]
[1743778911498,5.8384,1802.0,1800.7,8.0752]
[1743778911499,2.2257,1802.3,1801.8,3.2078]
[1743778911702,1.11017,1802.2,1802.1,3.2078]
[1743778912097,1.11017,1802.2,1801.9,0.00833472]
[1743778912098,1.11029,1802.0,1801.9,0.00833472]
[1743778912608,6.81809,1802.0,1801.9,4.72e-06]
[1743778912808,3.61029,1802.0,1801.9,4.72e-06]
[1743778913204,5.84319,1802.0,1801.9,4.72e-06]
[1743778913404,0.00833,1802.1,1801.9,4.72e-06]
[1743778913810,0.00833,1802.1,1802.0,4.31809]
[1743778914105,0.00833,1802.1,1802.0,0.76819767]
[1743778914410,1.11856,1802.1,1802.0,6.12789767]
[1743778914799,0.00833,1802.1,1802.0,5.42009767]
[1743778915000,1.11856,1802.1,1802.0,0.76819767]
[1743778915206,1.11856,1802.1,1802.0,41.56819767]
[1743778915607,4.32636,1802.1,1802.0,41.56819767]
[1743778915809,1.11856,1802.1,1802.0,41.56819767]
[1743778916111,1.11856,1802.1,1801.9,4.72e-06]
[1743778916112,1.11029,1802.0,1801.9,4.72e-06]
[1743778916302,1.11029,1802.0,1800.9,5.2587]
[1743778916303,1.11085,1801.2,1801.0,2.0591]
[1743778916506,2.77651,1801.5,1801.1,40.8]
[1743778916713,1.11079,1801.2,1801.1,40.8]
[1743778916913,2.1238,1801.5,1801.1,40.8]
[1743778917117,1.11079,1801.2,1801.1,40.8]
[1743778917414,3.23442,1801.5,1801.1,44.0078]
[1743778917613,2.2543,1802.0,1801.3,3.2078]
[1743778917814,1.11054,1801.6,1801.5,3.2078]
[1743778918009,1.11073,1801.3,1801.2,5.2669]
[1743778918309,1.11079,1801.2,1801.1,40.8]
[1743778918815,5.7078,1801.2,1800.8,3.2078]
[1743778919017,1.1111,1800.7,1800.6,2.0748]
[1743778919213,1.11122,1800.5,1800.4,5.2826]
[1743778919613,5.7078,1800.5,1799.9,3.2078]
[1743778919919,9.29375,1800.8,1799.9,3.2078]
[1743778920210,1.11147,1800.1,1800.0,0.00833472]
[1743778920416,1.11145,1800.2,1800.0,2.08313472]
[1743778920615,0.00833472,1800.4,1800.1,1.11145]
[1743778920813,1.11147,1800.1,1800.0,0.00833472]
[1743778921115,1.11147,1800.1,1799.2,2.77997]
[1743778921116,1.11184,1799.5,1799.4,3.2078]
[1743778921312,1.11202,1799.2,1799.1,5.2826]
[1743778921612,1.11202,1799.2,1798.6,3.2078]
[1743778921613,5.7078,1799.2,1798.6,3.2078]
[1743778921813,2.77961,1799.5,1798.6,5.3075]
[1743778922114,3.2078,1800.0,1799.0,3.2078]
[1743778922315,2.1713,1800.1,1799.2,3.2078]
[1743778922615,0.00833472,1799.7,1799.3,1.11194]
[1743778922820,0.00833472,1799.7,1799.6,1.11178]
[1743778923016,0.00833472,1799.7,1799.5,1.11179]
[1743778923313,2.1195,1800.2,1799.6,5.3075]
[1743778923513,1.11171,1799.7,1799.6,2.0997]
[1743778923706,3.2078,1799.9,1799.6,2.0997]
[1743778923707,1.1116,1799.9,1799.6,5.3075]
[1743778923911,1.11169,1799.8,1799.6,5.3075]
[1743778924113,3.2078,1799.9,1799.3,1.11194]
[1743778924307,2.1713,1799.8,1799.3,2.0997]
[1743778924615,1.11206,1799.2,1798.9,1.12050472]
[1743778924814,1.11206,1799.2,1798.9,3.34630472]
[1743778925016,1.112,1799.3,1798.9,3.34628472]
[1743778925216,1.112,1799.3,1799.2,40.8]
[1743778925523,2.233,1799.5,1799.2,40.8]
[1743778925813,0.00833472,1799.8,1799.7,1.11171]
[1743778926216,2.1195,1800.2,1799.7,3.2078]
[1743778926416,2.77867,1800.1,1799.4,3.2078]
[1743778926716,3.2078,1799.6,1798.9,3.21613472]
[1743778926926,6.6,1799.5,1799.0,40.8]
[1743778927112,1.11208,1799.1,1799.0,40.8]
[1743778927314,6.044,1799.4,1799.0,40.8]
[1743778927511,0.00833472,1799.4,1799.0,40.8]
[1743778927822,1.11197,1799.3,1799.0,41.91212]
[1743778928011,1.11208,1799.1,1799.0,40.8]
[1743778928417,3.61208,1799.1,1799.0,40.8]
[1743778928612,2.07553472,1799.4,1799.0,40.8]
[1743778928917,0.00833472,1799.4,1799.3,1.11196]
[1743778929215,1.11177,1799.7,1799.2,3.2078]
[1743778929416,3.31776,1799.7,1799.5,3.2078]
[1743778929616,3.31776,1799.7,1799.6,40.8]
[1743778929617,2.206,1799.7,1799.6,40.8]
[1743778929918,2.0672,1800.1,1799.6,43.57932]
[1743778930221,3.87343,1800.2,1799.7,6.1674759]
[1743778930520,1.11153,1800.0,1799.8,4.31943]
[1743778930821,3.2078,1799.9,1798.6,3.2078]
[1743778931017,3.2078,1799.4,1798.4,3.2078]
[1743778931224,2.1616,1799.3,1798.9,3.2078]
[1743778931523,2.1616,1799.3,1799.2,1.11202]
[1743778931818,9.3828,1799.4,1799.1,1.11205]
[1743778932017,0.00833472,1799.4,1799.1,0.00833472]
[1743778932226,0.00833472,1799.4,1799.3,1.11196]
[1743778933028,0.00833472,1799.4,1799.1,0.00833472]
[1743778933215,3.2078,1799.3,1799.1,0.00833472]
[1743778933417,1.11202,1799.2,1799.1,0.00833472]
[1743778933623,3.2078,1799.3,1799.1,0.00833472]
[1743778933822,3.2078,1799.3,1799.2,1.11202]
[1743778934119,4.31978,1799.3,1799.1,2.17233472]
[1743778934316,3.2078,1799.3,1799.1,2.17233472]
[1743778934522,3.2078,1799.3,1799.2,1.11202]
[1743778934722,5.27083472,1799.4,1799.2,0.70509762]
[1743778934912,3.2078,1799.9,1799.3,47.28376]
[1743778935109,3.2078,1799.9,1799.5,1.1118]
[1743778935110,1.11175,1799.7,1799.5,1.1118]
[1743778935319,2.0547,1799.8,1799.5,1.1118]
[1743778935516,1.11178,1799.6,1799.5,1.11184]
[1743778935811,1.11178,1799.6,1799.2,0.70509762]
[1743778935812,1.11196,1799.3,1799.2,0.70509762]
[1743778936018,3.2078,1799.4,1799.2,1.11201]
[1743778936323,3.2078,1799.4,1799.1,0.00833472]
[1743778936324,1.11202,1799.2,1799.1,0.00833472]
[1743778936512,1.11202,1799.2,1798.5,8.66047859]
[1743778936513,1.11239,1798.6,1798.5,8.66047859]
[1743778936716,3.2078,1799.0,1798.5,11.86827566]
[1743778936921,3.2078,1799.0,1798.9,8.66047859]
[1743778936922,1.11215,1799.0,1798.9,8.66047859]
[1743778937120,0.556,1799.4,1798.9,14.64875859]
[1743778937327,1.11195,1799.4,1799.2,1.11196]
[1743778937620,3.2078,1799.5,1799.1,3.2078]
[1743778937824,3.21613472,1799.5,1799.2,2.139]
[1743778938022,1.11196,1799.3,1799.2,2.139]
[1743778938221,1.12019472,1799.5,1799.3,1.11194]
[1743778938417,0.00833472,1799.5,1799.4,3.2509]
[1743778938719,2.2266,1800.2,1800.0,1.11152]
[1743778938920,0.556,1800.3,1800.1,2.139]
[1743778939222,2.77767,1800.8,1800.2,40.8]
[1743778939223,0.556,1800.6,1800.2,40.8]
[1743778939423,4.31914,1800.3,1800.2,40.8]
[1743778940025,1.11134,1800.3,1800.2,40.8]
[1743778940215,1.11134,1800.3,1800.2,42.7252]
[1743778940413,1.1114,1800.2,1800.1,0.00833472]
[1743778940722,1.11131,1800.4,1800.2,1.11137]
[1743778940924,1.11134,1800.3,1800.2,40.8]
[1743778941126,4.31914,1800.3,1800.2,40.8]
[1743778941324,1.1114,1800.2,1800.1,0.00833472]
[1743778941824,3.6114,1800.2,1800.1,0.00833472]
[1743778942221,1.1114,1800.2,1800.1,0.00833472]
[1743778942523,1.1114,1800.2,1799.7,1.9252]
[1743778942524,1.11161,1799.9,1799.7,1.9252]
[1743778942721,1.66714,1800.7,1800.0,2.77883]
[1743778942917,1.11133,1800.4,1800.1,42.7733]
[1743778943122,2.136,1800.9,1800.1,42.7733]
[1743778943123,3.7638,1801.2,1800.3,5.98617]
[1743778943328,0.556,1801.2,1800.7,5.98552]
[1743778943527,1.66682,1801.2,1800.8,1.9733]
[1743778943723,0.00833472,1801.1,1801.0,1.11091]
[1743778943926,1.11923472,1801.1,1800.9,3.2078]
[1743778944127,0.00833472,1801.1,1801.0,1.11091]
[1743778944331,0.00833472,1801.1,1801.0,4.31871]
[1743778944637,0.00833472,1801.1,1801.0,1.11091]
[1743778944835,0.00833472,1801.1,1801.0,1.9733]
[1743778945035,0.00833472,1801.1,1801.0,3.08421]
[1743778945335,5.6962,1801.7,1801.0,45.97276235]
[1743778945539,9.3088,1801.6,1801.0,42.7733]
[1743778945738,2.77651,1801.5,1801.0,42.7733]
[1743778946040,1.11066,1801.5,1801.1,1.11085]
[1743778946336,1.11073,1801.3,1801.2,1.8834]
[1743778946531,1.11073,1801.3,1800.8,0.00833472]
[1743778946532,9.3248,1801.5,1800.8,0.00833472]
[1743778946733,1.11091,1801.0,1800.9,1.8834]
[1743778946939,7.23295,1801.0,1800.8,0.00833472]
[1743778947128,9.3318,1801.3,1800.8,0.00833472]
[1743778947329,1.9324,1801.7,1800.9,3.2078]
[1743778947527,6.60884411,1802.2,1801.0,7.86837]
[1743778947528,0.5552,1801.9,1801.0,7.86837]
[1743778947733,3.2078,1802.0,1801.3,3.2078]
[1743778947932,13.8807,1802.5,1801.7,3.2078]
[1743778947933,2.4429,1802.5,1801.7,3.2078]
[1743778948132,3.763,1802.5,1801.9,5.98369]
[1743778948432,1.11011,1802.3,1802.0,3.00200472]
[1743778948641,3.2078,1802.5,1802.0,1.89173472]
[1743778948828,0.5552,1803.0,1802.4,3.2078]
[1743778949028,3.2078,1803.6,1802.5,10.98906]
[1743778949228,3.2078,1803.6,1802.8,3.2078]
[1743778949229,0.5552,1803.5,1802.8,3.2078]
[1743778949440,3.2078,1803.6,1803.3,3.2078]
[1743778949441,1.10937,1803.6,1803.3,3.2078]
[1743778949646,3.2078,1803.8,1803.4,2.0472]
[1743778949834,0.5552,1803.9,1803.4,2.0472]
[1743778950035,3.763,1804.0,1803.4,2.0472]
[1743778950233,0.5552,1804.1,1803.5,3.2078]
[1743778950535,1.10919,1803.8,1803.7,3.2078]
[1743778950841,3.2078,1804.2,1803.7,3.2078]
[1743778951034,3.2078,1804.2,1803.8,5.255]
[1743778951238,3.2078,1804.2,1803.9,2.0472]
[1743778951239,1.10906,1804.0,1803.9,2.0472]
[1743778951542,4.31686,1804.0,1803.9,2.0472]
[1743778951738,1.10903,1804.1,1803.9,2.0472]
[1743778951945,0.5544,1804.6,1803.9,2.0472]
[1743778951946,1.1089,1804.3,1804.0,3.2078]
[1743778952243,3.7622,1804.6,1804.1,1.8791]
[1743778952630,1.1087,1804.6,1804.2,4.31671]
[1743778952944,3.2078,1805.0,1804.5,3.2078]
[1743778953139,3.2078,1805.0,1804.6,1.8791]
[1743778953336,3.2078,1804.8,1804.6,1.8791]
[1743778953530,1.10888,1804.3,1804.2,0.00833472]
[1743778953835,3.2078,1804.6,1804.2,3.20779707]
[1743778954039,1.10882,1804.4,1804.3,40.8]
[1743778954340,1.10888,1804.3,1804.2,0.00833472]
[1743778954936,9.84288,1804.3,1804.2,4.72e-06]
[1743778955237,11.75868,1804.3,1804.2,4.72e-06]
[1743778955545,1.10888,1804.3,1804.2,4.72e-06]
[1743778955944,1.10879,1804.5,1804.2,4.72e-06]
[1743778956236,0.00825226,1804.4,1804.2,3.19946707]
[1743778956544,0.00825226,1804.4,1804.2,4.72e-06]
[1743778956731,1.10888,1804.3,1804.2,3.19946707]
[1743778956935,1.10888,1804.3,1804.2,4.72e-06]
[1743778957338,3.60888,1804.3,1804.2,4.72e-06]
[1743778957532,3.02468,1804.3,1804.2,4.72e-06]
[1743778957840,0.00825226,1804.4,1804.2,4.72e-06]
[1743778958143,0.00825226,1804.4,1804.3,1.10888]
[1743778958336,0.5544,1805.1,1804.6,1.10865]
[1743778958543,1.10864,1804.7,1804.4,3.2078]
[1743778958840,1.1087,1804.6,1804.5,40.8]
[1743778959039,5.97934,1804.8,1804.2,3.20780472]
[1743778959343,1.10888,1804.3,1804.2,4.72e-06]
[1743778960537,3.2078,1804.4,1804.2,4.72e-06]
[1743778960739,4.31647,1804.7,1804.3,44.0078]
[1743778960943,0.5544,1805.1,1804.3,44.0078]
[1743778961145,0.5544,1805.5,1804.5,3.2078]
[1743778961344,1.10836,1805.2,1804.9,1.10851]
[1743778961545,2.508,1805.5,1805.0,1.9993]
[1743778961546,1.10841,1805.1,1805.0,1.9993]
[1743778961745,2.77077,1805.3,1804.7,3.2078]
[1743778962046,1.10851,1804.9,1804.8,1.9993]
[1743778962546,1.1087,1804.6,1804.3,5.1737]
[1743778962739,1.10859,1804.8,1804.4,5.2071]
[1743778962935,3.2078,1805.0,1804.5,40.8]
[1743778963139,1.10863,1804.7,1804.6,1.9993]
[1743778963643,9.4208,1805.2,1804.6,1.9993]
[1743778963850,5.1614,1805.4,1804.6,46.0071]
[1743778964041,3.2078,1805.4,1804.9,3.2078]
[1743778964344,3.2078,1806.0,1805.3,3.2078]
[1743778964646,3.2078,1806.0,1805.6,3.2078]
[1743778964845,3.2078,1806.4,1805.8,3.2078]
[1743778965144,1.1077,1806.3,1806.1,1.10774]
[1743778965343,1.1077,1806.3,1806.0,3.2078]
[1743778965344,1.10758,1806.5,1806.2,2.0003]
[1743778965546,1.10765,1806.3,1806.2,2.0003]
[1743778965848,1.10765,1806.3,1805.5,0.0083114]
[1743778965849,0.22363712,1806.3,1805.5,0.0083114]
[1743778966145,1.10794,1805.9,1805.8,2.0003]
[1743778966347,1.10808,1805.6,1805.5,0.0083114]
[1743778966849,4.53951712,1805.6,1805.5,0.0083114]
[1743778967340,0.22363712,1805.6,1805.5,3.6164514]
[1743778967745,0.22363712,1805.6,1805.5,1.54538375]
[1743778967940,0.22363712,1805.6,1805.5,41.9164514]
[1743778968347,0.22363712,1805.6,1805.5,40.8083114]
[1743778968646,0.22363712,1805.6,1805.5,43.45352375]
[1743778968847,0.22363712,1805.6,1805.5,42.34538375]
[1743778969036,0.22363712,1805.6,1805.5,1.54538375]
[1743778969347,0.22363712,1805.6,1805.5,2.65352375]
[1743778969543,1.33171712,1805.6,1805.5,0.0083114]
[1743778969740,0.22363712,1805.6,1805.5,0.0083114]
[1743778969939,0.22363712,1805.6,1805.5,1.1164514]
[1743778970150,0.22363712,1805.6,1805.5,1.54538375]
[1743778970343,0.22363712,1805.6,1805.5,0.0083114]
[1743778970543,1.33171712,1805.6,1805.5,0.0083114]
[1743778970745,3.83171712,1805.6,1805.5,0.0083114]
[1743778970944,4.38611712,1805.6,1805.5,0.0083114]
[1743778971149,6.38611712,1805.6,1805.5,0.0083114]
[1743778971449,6.38611712,1805.6,1804.4,44.0078]
[1743778971450,2.77086,1805.2,1804.4,44.0078]
[1743778971644,5.97897,1805.0,1804.4,42.33707235]
[1743778971840,0.22363712,1804.7,1804.5,2.0584]
[1743778972046,1.33228712,1804.7,1804.5,3.16713]
[1743778972243,1.10876,1804.5,1804.4,40.8]
[1743778972444,1.10937,1803.5,1803.4,6.209]
[1743778972750,3.2078,1803.5,1803.4,3.59547235]
[1743778972950,3.2078,1803.7,1803.4,44.39547235]
[1743778973151,4.31717,1803.5,1803.4,42.8584]
[1743778973551,4.31717,1803.5,1802.8,5.98224]
[1743778973552,0.5552,1803.4,1802.6,8.66047859]
[1743778973749,1.10971,1803.0,1802.7,3.05323]
[1743778973952,3.2078,1803.1,1802.9,1.10971]
[1743778974144,2.6284,1803.4,1802.7,1.9434]
[1743778974145,2.6284,1803.4,1802.8,40.8]
[1743778974345,3.2078,1803.2,1803.1,1.1096]
[1743778974552,2.0732,1803.4,1802.8,40.8]
[1743778974858,5.1933,1803.5,1802.9,0.0083114]
[1743778975058,1.10968,1803.0,1802.9,0.0083114]
[1743778975358,7.3187,1803.0,1802.1,3.2078]
[1743778975552,1.10975,1802.9,1802.4,3.2078]
[1743778975754,3.2078,1803.2,1802.5,42.7434]
[1743778976056,5.1933,1803.5,1802.9,3.2078]
[1743778976261,1.10943,1803.4,1803.1,1.10959]
[1743778976462,0.0083114,1803.6,1803.0,2.0758]
[1743778976653,0.0083114,1803.6,1803.5,1.10937]
[1743778976955,0.0083114,1803.6,1803.4,1.10938]
[1743778977158,0.0083114,1803.6,1803.5,2.0758]
[1743778977348,0.0083114,1803.6,1803.2,3.2078]
[1743778977555,0.0083114,1803.6,1803.3,2.0758]
[1743778977959,0.0083114,1803.6,1803.5,1.10937]
[1743778978162,1.10908,1804.0,1803.7,1.1092]